bitfinex-derivatives/quotes_ETHF0:USTF0_20250712
["timestamp","ask_amount","ask_price","bid_price","bid_amount"]
[1752295990661,3.2078,2948.4,2948.3,3.51705]
[1752295991262,3.943,2948.7,2948.6,0.7465]
[1752295991462,3.943,2948.7,2948.6,3.51698]
[1752295991863,4.62096,2948.7,2948.6,3.51698]
[1752295992262,3.2078,2948.7,2948.6,3.51698]
[1752295992667,5.615,2949.0,2948.9,2.839]
[1752295992868,2.4073,2948.6,2948.5,2.839]
[1752295993165,0.7352,2948.6,2948.5,3.51701]
[1752295993368,0.7352,2948.8,2948.7,2.8252]
[1752295993557,0.7352,2948.8,2948.7,3.50316]
[1752295994869,3.8857,2949.0,2948.8,2.8481]
[1752295995070,4.624,2949.0,2948.9,1.7593]
[1752295995270,4.624,2949.0,2948.9,2.8481]
[1752295995867,4.62399,2949.0,2948.9,2.8481]
[1752295996172,5.58129,2949.0,2948.9,3.52601]
[1752295996468,4.62399,2949.0,2948.9,2.8481]
[1752295996668,3.9461,2949.0,2948.9,3.52601]
[1752295997066,4.62399,2949.0,2948.9,2.8481]
[1752295997366,3.9461,2949.0,2948.9,3.52601]
[1752295997575,3.2078,2949.0,2948.9,3.52601]
[1752295997869,3.88569,2949.0,2948.9,2.8481]
[1752295998171,5.58129,2949.0,2948.9,2.8481]
[1752295998473,4.9034,2949.0,2948.9,3.52601]
[1752295998672,3.9461,2949.0,2948.9,3.52601]
[1752295998972,3.2078,2949.0,2948.9,3.52601]
[1752296000780,1.6956,2949.5,2949.4,3.4543]
[1752296000967,0.7383,2949.6,2949.5,2.7765]
[1752296001174,0.7383,2949.6,2949.5,3.45428]
[1752296001464,1.63502,2949.8,2949.5,2.7765]
[1752296001662,2.37331,2949.8,2949.7,2.7765]
[1752296002066,2.37331,2949.8,2949.1,4.90243]
[1752296002067,0.7383,2949.4,2949.3,0.7694]
[1752296002276,0.7383,2949.4,2949.3,3.45432]
[1752296002571,1.4161,2949.4,2949.3,3.45432]
[1752296002773,2.3734,2949.4,2949.3,3.45432]
[1752296003272,2.3734,2949.4,2949.3,2.7765]
[1752296003469,2.3734,2949.4,2949.3,3.45432]
[1752296003869,1.6956,2949.4,2949.3,3.45432]
[1752296004674,2.3734,2949.4,2949.3,3.45432]
[1752296004873,0.7383,2949.4,2949.3,3.45432]
[1752296005273,0.67774,2949.7,2949.5,0.7694]
[1752296005472,2.37327,2950.0,2949.9,1.6877]
[1752296005776,2.37327,2950.0,2949.9,2.7765]
[1752296005979,2.37327,2950.0,2949.9,3.45418]
[1752296006371,1.41597,2950.0,2949.9,3.45418]
[1752296006768,1.41597,2950.0,2949.9,2.7765]
[1752296006972,2.37327,2950.0,2949.9,3.45418]
[1752296007471,2.37327,2950.0,2949.9,2.7765]
[1752296007875,0.67773,2949.7,2949.6,0.9183]
[1752296008176,1.6956,2949.7,2949.6,2.36545]
[1752296008375,2.37333,2949.7,2949.6,2.36545]
[1752296008574,2.37333,2949.7,2949.6,2.7765]
[1752296009372,2.37333,2949.7,2949.6,3.45425]
[1752296009873,1.6956,2949.7,2949.6,3.45425]
[1752296010073,0.7383,2949.7,2949.6,3.45425]
[1752296010378,2.37333,2949.7,2949.6,3.45425]
[1752296013776,1.6956,2949.7,2949.6,3.45425]
[1752296013974,2.3733,2949.9,2949.8,0.67771]
[1752296014284,2.3733,2949.9,2949.8,3.45421]
[1752296014680,0.7383,2949.9,2949.8,3.45421]
[1752296015378,1.41598,2949.9,2949.8,3.45421]
[1752296015581,0.7383,2949.9,2949.8,3.45421]
[1752296015778,0.67768,2950.0,2949.9,3.45418]
[1752296015978,3.2078,2950.1,2950.0,0.67766]
[1752296015979,4.62375,2950.1,2950.0,0.67766]
[1752296016198,5.58105,2950.1,2950.0,2.7765]
[1752296016683,5.58105,2950.1,2950.0,3.45416]
[1752296016977,1.6956,2950.3,2950.2,0.67761]
[1752296017177,5.5809,2950.7,2950.6,0.7694]
[1752296017378,5.6066,2950.7,2950.6,2.7765]
[1752296017572,6.5639,2950.7,2950.6,2.7765]
[1752296018184,6.5639,2950.7,2950.6,3.45402]
[1752296018386,6.5639,2950.7,2950.6,2.7765]
[1752296019977,6.5639,2950.7,2950.6,1.8582]
[1752296020180,0.7383,2950.3,2950.2,1.8582]
[1752296020580,0.7383,2950.3,2950.2,0.7694]
[1752296020786,0.7383,2950.3,2950.2,2.7765]
[1752296020988,1.6956,2950.5,2950.4,1.44697]
[1752296021188,2.37315,2950.5,2950.4,3.45407]
[1752296021587,0.7383,2950.5,2950.4,3.45407]
[1752296021986,1.41585,2950.5,2950.4,2.7765]
[1752296022390,0.7383,2950.5,2950.4,3.45407]
[1752296022684,0.7383,2950.6,2950.5,3.45405]
[1752296022885,4.62362,2950.7,2950.6,3.45402]
[1752296023085,3.9461,2950.7,2950.6,3.45402]
[1752296023879,4.28647011,2951.5,2950.3,1.69395]
[1752296023880,3.2078,2951.0,2950.8,0.7349]
[1752296024082,3.9612,2951.4,2951.3,3.40636]
[1752296026881,3.9612,2951.4,2950.7,5.80093011]
[1752296026882,3.2078,2951.4,2951.0,0.949]
[1752296027086,3.36921,2951.1,2951.0,2.7597]
[1752296028187,2.37381,2951.1,2951.0,2.7597]
[1752296029092,3.36921,2951.1,2951.0,1.8107]
[1752296030384,3.36921,2951.1,2951.0,2.7597]
[1752296030385,0.7534,2951.1,2951.0,2.7597]
[1752296030592,2.37379,2951.2,2951.1,2.3613]
[1752296030895,2.37379,2951.2,2950.7,3.2078]
[1752296030896,3.9612,2951.4,2951.3,3.43706]
[1752296031087,3.2078,2951.4,2951.3,3.43706]
[1752296032287,3.9612,2951.7,2951.6,2.36118]
[1752296032594,3.9612,2951.7,2951.6,3.43698]
[1752296033191,4.63847,2951.7,2951.6,2.7597]
[1752296033391,5.58147,2951.7,2951.6,2.7597]
[1752296034194,5.58147,2951.7,2951.6,3.43699]
[1752296034384,5.58147,2951.7,2951.6,2.7597]
[1752296034584,3.9612,2951.7,2951.6,3.43699]
[1752296034987,3.2078,2951.7,2951.6,3.43699]
[1752296035294,0.75848362,2951.9,2951.8,0.67725]
[1752296035490,0.75848362,2951.9,2951.8,3.43695]
[1752296036390,0.00508362,2951.9,2951.8,3.43695]
[1752296037293,0.75848362,2951.9,2951.8,3.43695]
[1752296038088,0.00508362,2951.9,2951.8,3.43695]
[1752296042392,0.943,2952.3,2952.1,3.43687]
[1752296042597,0.7534,2952.3,2952.2,3.43686]
[1752296043801,2.37347,2952.6,2952.5,1.8107]
[1752296043997,2.37347,2952.6,2952.5,2.7597]
[1752296044396,3.36887,2952.6,2952.5,2.7597]
[1752296044796,2.42595,2952.3,2952.2,1.8107]
[1752296044992,0.7534,2952.1,2951.6,3.21288362]
[1752296045200,1.4306,2952.0,2951.9,1.8107]
[1752296045492,1.4306,2952.0,2951.6,3.21288362]
[1752296045493,0.943,2952.2,2952.1,0.67717]
[1752296045698,1.6964,2952.2,2952.1,3.43687]
[1752296045897,3.2078,2952.3,2952.2,3.43686]
[1752296046398,3.2078,2952.3,2952.2,2.48786]
[1752296046599,3.2078,2952.3,2952.2,3.43686]
[1752296046999,0.7534,2952.3,2952.2,3.43686]
[1752296048000,0.7534,2952.4,2952.3,1.41201]
[1752296048198,0.7534,2952.4,2952.3,3.43681]
[1752296049399,0.7534,2952.4,2952.3,2.7597]
[1752296049700,0.7534,2952.4,2952.3,3.43683]
[1752296050896,1.6964,2952.7,2952.6,1.41195]
[1752296051097,1.6964,2952.7,2952.6,3.43675]
[1752296051497,0.7534,2952.7,2952.6,3.43675]
[1752296052696,1.62001,2952.9,2952.6,2.7597]
[1752296052901,0.7534,2952.6,2952.5,1.41198]
[1752296053102,1.6964,2952.6,2952.5,3.43678]
[1752296054607,2.37346,2952.6,2952.5,3.43678]
[1752296055310,1.6655,2952.4,2952.3,3.49982]
[1752296056006,0.7532,2952.4,2952.3,3.49982]
[1752296056304,0.7532,2952.7,2952.6,3.49975]
[1752296056509,3.30074,2952.7,2952.6,2.8227]
[1752296056907,3.30082,2952.4,2952.3,2.8227]
[1752296057111,1.6655,2952.4,2952.3,3.49983]
[1752296057710,0.7532,2952.6,2952.5,1.43888]
[1752296057908,1.6655,2952.6,2952.5,3.49978]
[1752296058608,1.6655,2952.7,2952.6,3.49976]
[1752296059108,0.7532,2952.7,2952.6,3.49976]
[1752296059716,2.34254,2952.7,2952.6,2.8227]
[1752296060020,2.34261,2952.4,2952.3,2.8227]
[1752296060415,1.6655,2952.4,2952.3,3.49982]
[1752296061919,2.34261,2952.4,2952.3,3.49982]
[1752296062520,1.6655,2952.4,2952.3,3.49982]
[1752296063021,1.66930141,2952.4,2952.3,3.49982]
[1752296063216,2.34641141,2952.4,2952.3,3.49982]
[1752296063622,0.00380141,2952.4,2952.3,3.49982]
[1752296063923,1.66930141,2952.4,2952.3,3.49982]
[1752296064123,1.71520141,2952.4,2952.3,1.1416]
[1752296064420,1.66930141,2952.4,2952.3,3.49983]
[1752296065022,0.00380141,2952.4,2952.3,3.49983]
[1752296066022,1.66930141,2952.4,2952.3,3.49983]
[1752296066724,2.62750141,2952.4,2952.3,2.58053]
[1752296066927,2.62750141,2952.4,2952.3,3.49983]
[1752296068425,1.66930141,2952.4,2952.3,3.49983]
[1752296069224,0.00380141,2952.4,2952.3,3.49983]
[1752296070826,0.00380141,2952.4,2952.3,4.34754169]
[1752296074126,1.6655,2952.9,2952.8,0.67702]
[1752296074326,1.6655,2952.9,2952.8,3.49972]
[1752296074730,2.3425,2952.9,2952.8,3.49972]
[1752296074932,3.3007,2952.9,2952.8,3.49972]
[1752296075225,0.7532,2952.7,2952.6,5.1112]
[1752296075432,2.6237,2952.7,2952.6,6.0305]
[1752296075730,2.6237,2952.7,2952.6,6.70755]
[1752296075925,2.6237,2952.7,2952.6,3.49975]
[1752296076731,1.6655,2952.7,2952.6,3.49975]
[1752296076931,0.7532,2952.7,2952.6,3.49975]
[1752296081234,1.6655,2952.7,2952.6,3.49975]
[1752296082135,0.7532,2952.7,2952.6,3.49975]
[1752296082329,1.63519,2953.0,2952.9,2.8227]
[1752296082330,1.6655,2953.0,2952.9,2.8227]
[1752296082528,1.6655,2953.0,2952.9,3.4997]
[1752296083430,0.7532,2953.0,2952.9,3.4997]
[1752296084129,1.43017,2953.0,2952.9,2.8227]
[1752296084335,2.5684,2952.9,2952.8,28.81981]
[1752296085727,0.7372,2952.9,2952.6,1.70095]
[1752296085927,2.6136,2952.7,2952.6,1.70095]
[1752296086131,2.6136,2952.7,2952.6,3.40585]
[1752296086328,0.6771,2952.5,2952.2,1.9802]
[1752296086633,3.46131169,2952.4,2952.3,1.70101]
[1752296086828,1.8764,2952.3,2952.1,3.88497]
[1752296087029,2.33326,2952.2,2952.1,1.70107]
[1752296087236,3.29076,2952.2,2952.1,1.0239]
[1752296087439,3.29078,2952.1,2952.0,3.40599]
[1752296087638,1.6947,2952.1,2952.0,3.40599]
[1752296087936,0.7372,2952.1,2952.0,3.40599]
[1752296088632,1.6947,2952.1,2952.0,3.40599]
[1752296092733,2.602,2952.1,2952.0,27.12609]
[1752296093035,2.602,2952.1,2952.0,28.83099]
[1752296093432,1.6947,2952.1,2952.0,28.83099]
[1752296094433,2.602,2952.1,2952.0,28.83099]
[1752296095239,2.602,2952.1,2951.8,3.2078]
[1752296095240,1.41443,2951.9,2951.8,3.2078]
[1752296095439,2.602,2951.7,2951.6,26.09335362]
[1752296095634,3.27927,2951.7,2951.6,27.11725362]
[1752296096132,2.602,2951.7,2951.6,27.11725362]
[1752296096339,3.27927,2951.7,2951.6,26.09335362]
[1752296096639,3.27927,2951.7,2951.6,26.09337362]
[1752296096833,3.27927,2951.7,2951.6,0.68237362]
[1752296097138,3.27927,2951.7,2951.6,0.00508362]
[1752296101142,3.27927,2951.7,2951.6,1.77758362]
[1752296101443,0.9022,2951.2,2950.7,1.9802]
[1752296101643,2.37211,2951.1,2951.0,2.7288]
[1752296102138,1.4147,2950.7,2950.6,3.9564]
[1752296102338,2.3722,2950.7,2950.6,0.7486]
[1752296102540,1.6947,2950.7,2950.6,1.4261]
[1752296102842,1.6947,2950.7,2950.6,3.4063]
[1752296104342,3.2078,2951.2,2951.1,0.67741]
[1752296104545,3.2078,2951.2,2950.7,1.69376]
[1752296104546,2.37204,2951.4,2951.3,2.7288]
[1752296104735,2.37204,2951.4,2951.3,3.40616]
[1752296105245,1.6947,2951.4,2951.3,3.40616]
[1752296105443,1.6947,2951.6,2951.5,3.40612]
[1752296106043,2.37199,2951.6,2951.5,2.7288]
[1752296106442,2.37199,2951.6,2951.5,3.40612]
[1752296107441,2.37199,2951.6,2951.5,2.7288]
[1752296107641,3.27419,2951.6,2951.5,2.7288]
[1752296108839,3.27419,2951.6,2951.5,3.40612]
[1752296111447,3.27419,2951.6,2951.5,1.70122]
[1752296111846,3.27419,2951.6,2951.5,1.0239]
[1752296112146,1.41456,2951.4,2951.3,2.44985]
[1752296112347,3.27426,2951.4,2951.3,1.7725]
[1752296113546,0.67741,2951.1,2951.0,3.2078]
[1752296113742,3.24741,2951.1,2951.0,0.7486]
[1752296114147,3.24741,2951.1,2951.0,1.7692]
[1752296114537,3.24741,2951.1,2950.8,0.9563]
[1752296114538,2.23145,2950.9,2950.8,1.6913]
[1752296114743,3.18895,2950.9,2950.8,1.0206]
[1752296115352,3.18822,2950.6,2950.5,2.36885]
[1752296115548,3.18822,2950.6,2950.5,3.33655]
[1752296115743,3.18822,2950.6,2950.5,1.6913]
[1752296116049,3.18822,2950.6,2950.5,2.659]
[1752296116750,3.18829,2950.3,2950.2,5.3893]
[1752296117048,3.18829,2950.3,2950.2,6.357]
[1752296117248,3.18829,2950.3,2950.2,5.3893]
[1752296117445,6.39609,2950.3,2950.2,3.698]
[1752296120450,4.8432,2950.3,2950.2,7.88391919]
[1752296120848,3.8865,2950.3,2950.2,7.03462]
[1752296121043,1.6354,2950.6,2950.5,3.33655]
[1752296122351,0.6787,2950.6,2950.5,3.33655]
[1752296124353,3.8865,2951.0,2950.9,0.67745]
[1752296124553,0.6787,2951.0,2950.9,3.33645]
[1752296126252,0.6787,2951.2,2951.1,1.64511]
[1752296126456,0.6787,2951.2,2951.1,3.33641]
[1752296126964,3.8865,2951.4,2951.3,3.33636]
[1752296127255,4.84485826,2951.4,2951.3,3.33636]
[1752296127452,3.8865,2951.4,2951.3,3.33636]
[1752296127850,3.8865,2951.4,2951.3,2.659]
[1752296128455,4.84509112,2951.4,2951.3,2.659]
[1752296128755,3.8865,2951.4,2951.3,2.659]
[1752296128956,4.56384,2951.4,2951.3,3.33636]
[1752296129158,5.52247331,2951.4,2951.3,3.33636]
[1752296129656,4.84513331,2951.4,2951.3,3.33636]
[1752296129959,5.52247331,2951.4,2951.3,3.33636]
[1752296130361,5.52247331,2951.4,2951.3,2.659]
[1752296130554,6.47917331,2951.4,2951.3,2.659]
[1752296130954,2.31274,2951.4,2951.3,2.659]
[1752296132062,0.6787,2951.0,2950.9,2.659]
[1752296132360,4.0602,2951.4,2950.9,2.659]
[1752296132361,1.3561,2951.2,2951.1,1.34811]
[1752296132560,2.3128,2951.2,2951.1,3.33641]
[1752296134763,0.6787,2951.2,2951.1,3.33641]
[1752296135361,2.31279,2951.2,2951.1,3.33641]
[1752296135662,0.6787,2951.2,2951.1,3.33641]
[1752296136055,1.35609,2951.2,2951.1,3.33641]
[1752296136457,2.31279,2951.2,2951.1,3.33641]
[1752296138067,0.9567,2951.2,2950.7,3.2078]
[1752296138257,1.6354,2950.8,2950.7,4.556]
[1752296138662,2.31288,2950.8,2950.7,5.5237]
[1752296138965,0.67748,2950.8,2950.7,6.5443]
[1752296139163,0.67747,2950.9,2950.8,1.34816]
[1752296139360,0.67747,2950.9,2950.8,2.659]
[1752296140165,0.67747,2950.9,2950.8,3.33648]
[1752296140367,1.35617,2950.9,2950.8,2.659]
[1752296143156,3.15017,2950.9,2950.8,1.9883]
[1752296143361,3.15017,2950.9,2950.7,3.2078]
[1752296143362,1.35622,2950.6,2950.5,1.6614]
[1752296143564,3.15022,2950.6,2950.5,2.6291]
[1752296143868,2.31292,2950.6,2950.5,2.6291]
[1752296144362,2.31292,2950.6,2950.5,3.30665]
[1752296144862,2.31292,2950.6,2950.5,0.6975]
[1752296145057,2.31292,2950.6,2950.5,3.33345]
[1752296146463,2.31292,2950.6,2950.5,2.6559]
[1752296147667,3.15022,2950.6,2950.5,2.6559]
[1752296147868,3.15022,2950.6,2950.5,1.6882]
[1752296149165,2.33607,2950.4,2950.3,1.5957]
[1752296149464,1.6585,2950.4,2950.3,2.27329]
[1752296149665,1.6585,2950.4,2950.3,3.26399]
[1752296150362,2.33607,2950.4,2950.3,3.26399]
[1752296150869,1.6585,2950.4,2950.3,3.26399]
[1752296152670,2.33607,2950.4,2950.3,3.26399]
[1752296152971,0.6668,2950.4,2950.3,3.26399]
[1752296153667,3.2078,2950.9,2950.5,1.8889]
[1752296153869,5.54375,2950.9,2950.8,2.5864]
[1752296156271,3.8746,2950.9,2950.8,3.26388]
[1752296157171,0.6668,2950.9,2950.8,3.26388]
[1752296159475,1.6585,2950.9,2950.8,2.36568]
[1752296159675,1.6585,2950.9,2950.8,3.26388]
[1752296160668,1.34417,2951.3,2951.2,1.5957]
[1752296160867,1.6585,2951.3,2951.2,2.36558]
[1752296161075,0.6668,2951.3,2951.2,3.26378]
[1752296161467,1.6585,2951.5,2951.4,2.27304]
[1752296161670,3.29747497,2951.5,2951.4,3.26374]
[1752296161873,2.62015497,2951.5,2951.4,3.26374]
[1752296162073,3.29747497,2951.5,2951.4,3.26374]
[1752296162273,4.11727497,2951.5,2951.4,2.5864]
[1752296162479,4.11727497,2951.5,2951.4,0.9907]
[1752296163177,3.15564,2951.4,2951.3,1.6882]
[1752296163372,3.15564,2951.4,2951.3,2.5864]
[1752296164475,3.15571,2951.1,2951.0,1.5957]
[1752296164676,3.15571,2951.1,2951.0,2.5864]
[1752296164870,2.16401,2951.1,2951.0,2.5864]
[1752296165075,3.15571,2951.1,2951.0,1.6882]
[1752296165382,3.15571,2951.1,2951.0,0.9907]
[1752296166372,0.67745,2950.9,2950.8,1.57568]
[1752296166575,3.15575,2950.9,2950.8,3.26388]
[1752296167176,0.6668,2951.2,2951.1,2.5864]
[1752296167376,2.33589,2951.2,2951.1,2.5864]
[1752296169776,3.15569,2951.2,2951.1,2.5864]
[1752296170377,1.6585,2950.9,2950.8,2.5864]
[1752296170577,2.33595,2950.9,2950.8,2.5864]
[1752296170985,4.00456793,2950.9,2950.8,1.6882]
[1752296171185,4.00456793,2950.9,2950.8,2.5864]
[1752296172379,3.15575,2950.9,2950.8,2.5864]
[1752296173874,3.15575,2950.9,2950.8,1.6882]
[1752296174277,3.15575,2950.9,2950.8,0.9907]
[1752296174683,2.1578,2950.7,2950.6,0.702]
[1752296174882,3.99831793,2950.7,2950.6,0.702]
[1752296175184,1.35785,2950.5,2950.4,1.6002]
[1752296175385,2.29035,2950.5,2950.4,2.6222]
[1752296175586,9.73691793,2950.5,2949.8,22.3763]
[1752296175888,9.73691793,2950.5,2948.1,16.948]
[1752296175889,1.61057,2948.2,2948.1,16.948]
[1752296176079,1.69478,2949.0,2948.1,16.948]
[1752296176080,3.2078,2948.4,2948.1,16.948]
[1752296176379,3.2078,2948.3,2948.2,16.948]
[1752296176580,3.2078,2948.3,2947.7,3.2078]
[1752296176883,0.9325,2948.1,2947.9,3.3897]
[1752296177079,0.9325,2948.0,2947.9,3.3897]
[1752296177280,0.9325,2948.0,2947.9,20.3377]
[1752296177481,1.78131793,2948.0,2947.9,20.3377]
[1752296177677,0.9325,2947.9,2947.8,1.022]
[1752296178786,2.63444966,2947.9,2947.8,1.022]
[1752296180078,1.70194966,2948.2,2948.1,0.6781]
[1752296180283,1.70194966,2948.2,2948.1,15.35090445]
[1752296180486,2.92297348,2948.2,2948.1,32.29890445]
[1752296182885,1.22102382,2948.2,2948.1,33.00090445]
[1752296183286,1.22102382,2948.2,2948.1,36.20870445]
[1752296184083,1.70194966,2948.5,2948.4,1.38003]
[1752296184283,2.92282611,2948.5,2948.4,9.91063]
[1752296184490,2.92282611,2948.5,2948.4,26.85863]
[1752296185993,2.92282611,2948.5,2948.4,36.20863445]
[1752296186190,1.22087645,2948.5,2948.4,36.20863445]
[1752296187701,2.92282611,2948.5,2948.4,36.20863445]
[1752296188094,2.92282611,2948.5,2948.4,63.89163445]
[1752296188992,3.85532611,2948.5,2948.4,62.30250445]
[1752296189190,3.85532611,2948.5,2948.4,62.98053445]
[1752296189397,2.92282611,2948.5,2948.4,63.89163445]
[1752296191090,4.53332611,2948.5,2948.4,22.9728]
[1752296191295,3.85532611,2948.5,2948.4,23.65083]
[1752296191495,2.92282611,2948.5,2948.4,23.65083]
[1752296192195,3.60082611,2948.5,2948.4,23.65083]
[1752296192389,3.60082611,2948.5,2948.4,22.9728]
[1752296192700,4.53332611,2948.5,2948.4,22.9728]
[1752296192897,4.53332611,2948.5,2948.4,18.672]
[1752296193197,4.53332611,2948.5,2948.4,19.5831]
[1752296194194,2.92282611,2948.5,2948.4,23.65083]
[1752296196596,2.92282611,2948.5,2948.4,51.21783]
[1752296197503,2.92282611,2948.5,2948.4,63.77563445]
[1752296197504,1.22087645,2948.5,2948.4,63.77563445]
[1752296197705,1.20809529,2949.0,2948.9,0.67791]
[1752296197899,1.70194966,2949.2,2949.1,3.31297]
[1752296198199,1.70194966,2949.2,2949.1,6.70267]
[1752296198396,1.70194966,2949.2,2949.1,23.65067]
[1752296198795,3.06008966,2949.2,2949.1,22.9728]
[1752296199001,3.99258966,2949.2,2949.1,22.9728]
[1752296199396,3.99258966,2949.2,2949.1,50.4908]
[1752296199598,3.99258966,2949.2,2949.1,51.16867]
[1752296199800,3.31474966,2949.2,2949.1,51.16867]
[1752296200205,3.99258966,2949.2,2949.1,51.16867]
[1752296200998,3.99258966,2949.2,2949.1,50.4908]
[1752296202598,3.99258966,2949.2,2949.1,47.1011]
[1752296202802,3.99258966,2949.2,2949.1,50.4908]
[1752296203502,0.6803,2949.2,2949.1,51.16867]
[1752296203704,1.35814,2949.2,2949.1,51.16867]
[1752296204002,2.29064,2949.2,2949.1,51.16867]
[1752296205604,4.10278294,2949.2,2949.1,51.16867]
[1752296206700,2.49244294,2949.2,2949.1,51.16867]
[1752296207200,4.1919326,2949.3,2949.2,0.67784]
[1752296207400,3.5140926,2949.3,2949.2,24.34374]
[1752296207598,1.81214294,2949.3,2949.2,32.48564916]
[1752296207804,3.2078,2950.2,2950.0,0.9496]
[1752296208005,1.66121,2950.2,2950.1,34.71054]
[1752296208204,0.67758,2950.4,2950.2,3.3282]
[1752296208504,1.66118,2950.4,2950.3,50.9759]
[1752296208709,2.60668,2950.4,2950.3,50.9759]
[1752296209002,4.30862966,2950.4,2950.3,3.3282]
[1752296209206,0.9836,2950.1,2950.0,4.00586]
[1752296209506,0.9836,2950.1,2950.0,3.3282]
[1752296209707,6.99873501,2950.1,2950.0,50.9879]
[1752296210606,6.99873501,2950.1,2950.0,51.0099]
[1752296215616,2.88148535,2950.1,2950.0,51.0099]
[1752296215817,1.22024535,2950.1,2950.0,59.82946916]
[1752296218010,0.9836,2950.7,2950.6,2.346]
[1752296218209,4.90974966,2950.9,2950.6,33.8529]
[1752296218415,4.86885,2950.9,2950.8,2.346]
[1752296218617,5.81435,2950.9,2950.8,30.4632]
[1752296219217,3.88525,2950.9,2950.8,51.47438]
[1752296219412,5.6231,2951.3,2951.0,0.67743]
[1752296219610,7.28406,2951.3,2951.2,0.9496]
[1752296219816,7.28406,2951.3,2951.2,3.3282]
[1752296221416,1.6611,2950.7,2950.6,5.14468362]
[1752296221721,3.36304966,2950.7,2950.6,37.21379278]
[1752296221923,3.36304966,2950.7,2950.6,57.54909278]
[1752296222116,3.36304966,2950.7,2950.6,58.94549278]
[1752296222312,3.36304966,2950.7,2950.6,62.15329278]
[1752296222825,4.30854966,2950.7,2950.6,58.95849278]
[1752296223019,4.30854966,2950.7,2950.6,31.81049278]
[1752296223217,4.30854966,2950.7,2950.6,58.92949278]
[1752296223416,4.30854966,2950.7,2950.6,23.66858362]
[1752296223621,5.77834966,2950.7,2950.6,27.11908362]
[1752296223923,5.77834966,2950.7,2950.6,0.00508362]
[1752296226118,5.77834966,2950.7,2950.6,0.95468362]
[1752296226312,5.77834966,2950.7,2950.6,2.35108362]
[1752296228219,5.77834966,2950.7,2950.6,3.33328362]
[1752296228617,4.90142,2951.0,2950.6,27.02439278]
[1752296228618,2.4153,2951.0,2950.6,27.02439278]
[1752296228924,4.33067421,2951.4,2951.3,0.9496]
[1752296229121,5.27617421,2951.4,2951.3,3.3282]
[1752296229523,3.13074,2951.4,2951.3,3.3282]
[1752296229716,4.07624,2951.4,2951.3,3.3282]
[1752296230024,3.82620433,2951.4,2951.3,20.2698]
[1752296231924,5.29600433,2951.4,2951.3,19.2876]
[1752296234832,5.29600433,2951.4,2951.3,20.2698]
[1752296235034,2.88070433,2951.4,2951.3,23.6595]
[1752296236229,3.79270433,2951.4,2951.3,23.6595]
[1752296237326,5.33910433,2951.4,2951.3,23.6595]
[1752296238833,3.79270433,2951.4,2951.3,23.6595]
[1752296239233,4.99263854,2951.4,2951.3,23.6595]
[1752296239434,2.41969854,2951.4,2951.3,24.33686]
[1752296239634,3.09703854,2951.4,2951.3,23.6595]
[1752296239834,5.00093854,2951.4,2951.3,23.6595]
[1752296240137,6.54733854,2951.4,2951.3,23.6595]
[1752296240833,6.54733854,2951.4,2951.3,20.2698]
[1752296241640,5.00093854,2951.4,2951.3,23.6595]
[1752296243137,5.00093854,2951.4,2951.3,50.4035]
[1752296243736,3.80100433,2951.4,2951.3,50.4035]
[1752296244138,3.80100433,2951.4,2951.3,51.08086]
[1752296244639,3.80100433,2951.4,2951.3,50.4035]
[1752296246933,4.64982461,2951.4,2951.3,19.2876]
[1752296247138,5.84975882,2951.4,2951.3,2.346]
[1752296247336,10.1092391,2951.4,2949.3,1.6945]
[1752296247530,0.67777,2949.5,2949.4,16.9472]
[1752296247730,2.43859028,2949.5,2949.4,43.6662]
[1752296248042,2.43859028,2949.5,2949.4,56.13960916]
[1752296248436,0.84882028,2949.5,2949.4,56.81740916]
[1752296248835,0.67777,2949.5,2949.4,56.13960916]
[1752296249330,2.37740897,2949.6,2949.4,55.19780916]
[1752296249532,3.2078,2949.7,2949.6,1.61955]
[1752296249736,3.2078,2949.7,2949.6,21.95725]
[1752296249942,3.2078,2949.7,2949.6,56.80715916]
[1752296250440,3.2078,2949.7,2949.6,58.26215916]
[1752296251039,4.42751579,2949.7,2949.6,58.26215916]
[1752296251639,1.21971579,2949.7,2949.6,58.26215916]
[1752296253241,1.66958,2949.9,2949.8,0.9666]
[1752296253440,3.75665751,2949.9,2949.8,6.48901]
[1752296253641,1.21835751,2949.9,2949.8,59.24271916]
[1752296254341,5.45630648,2949.9,2949.8,57.05400916]
[1752296254543,6.13398648,2949.9,2949.8,59.18671916]
[1752296255945,7.04598648,2949.9,2949.8,58.50900916]
[1752296256143,7.04598648,2949.9,2949.8,59.18671916]
[1752296256745,7.04598648,2949.9,2949.8,58.50900916]
[1752296257245,7.04598648,2949.9,2949.8,57.00800916]
[1752296257445,5.82762897,2949.9,2949.8,57.00800916]
[1752296258637,1.66967,2949.6,2949.5,1.9084]
[1752296258946,2.5383,2949.6,2949.5,47.57117]
[1752296259150,3.21605,2949.6,2949.5,59.10277916]
[1752296259650,3.21605,2949.6,2949.5,32.52077916]
[1752296259950,3.21605,2949.6,2949.5,59.11277916]
[1752296260247,3.21605,2949.6,2949.5,58.43500916]
[1752296260447,3.21605,2949.6,2949.5,59.11277916]
[1752296260646,3.21605,2949.6,2949.5,31.84300916]
[1752296260846,3.21605,2949.6,2949.5,58.40700916]
[1752296261247,3.21605,2949.6,2949.5,59.08477916]
[1752296261642,2.5383,2949.6,2949.5,59.08477916]
[1752296262046,3.21605,2949.6,2949.5,59.08477916]
[1752296263247,2.5383,2949.6,2949.5,59.08477916]
[1752296263448,3.21605,2949.6,2949.5,59.08477916]
[1752296264450,4.12805,2949.6,2949.5,58.40700916]
[1752296265042,4.12805,2949.6,2949.5,56.95200916]
[1752296265550,4.12805,2949.6,2949.5,58.46000916]